{"text_format":"3","workbook":"xlsx","n_sheets":1,"sheets":["Sheet1"],"not_rendered":{"defined_names":1},"read":"whole","date_system":"1900"}

{"sheet":"Sheet1","index":0,"n_rows":84,"n_cols":6,"rows_kept":84,"merged":[[1,0,1,5],[2,0,2,5]]}
[]
["Band Instruments - IFB #20-002"]
["Instrument List"]
["Instrument Description","Make / Model","Qty.","Cost per Instrument","Approved Alternate Make/Model","Total Cost"]
["18\" Suspended Cymbal","Sabian 21889",1,null,null,{"$f":"C5*D5","v":0}]
["18-note chimes","Majestic C6518B",1,null,null,{"$f":"C6*D6","v":0}]
["2 bass drum heads Sizes 14 - 32 (package deal) ","Remo Powermax ",1,null,null,0]
["4.3 octave marimba","Majestic M6543D",1,null,null,0]
["Alto Clarinet","LeBlanc Model 7165",1,null,null,0]
["Alto Saxophone","Giardinelli GAS-300",4,null,null,0]
["Alto Saxophone","Yamaha YAS-260",3,null,null,0]
["Alto Saxophone","Yamaha YAS-480",2,null,null,0]
["Alto Saxophone","Fidelis",5,null,null,0]
["Baritone Horn","Jupiter JBR700",3,null,null,0]
["Baritone Saxophone","Fidelis",1,null,null,0]
["Bass Case 14\" ","Pearl",1,null,null,0]
["Bass Case 16\"","Pearl",1,null,null,0]
["Bass Case 18\" ","Pearl",1,null,null,0]
["Bass Case 20\"","Pearl",1,null,null,0]
["Bass Case 22\" ","Pearl",1,null,null,0]
["Bass Case 24\"","Pearl",1,null,null,0]
["Bass Case 26\" ","Pearl",1,null,null,0]
["Bass Case 28\"","Pearl",1,null,null,0]
["Bass Case 30\" ","Pearl",1,null,null,0]
["Bass Case 32\"","Pearl",1,null,null,0]
["Bass Clarinet","Selmer 1430LP",4,null,null,0]
["Bass drum mallet Sizes XS - XXL (package deal) ","Vic Firth Corpsmaster ",1,null,null,0]
["Bb Clarinets","Yamaha YCL-255",5,null,null,0]
["Bb Clarinets","Buffet BC2539-2-0",7,null,null,0]
["Bb Clarinets","Backun Alpha Bb with Nickel Keys",4,null,null,0]
["Bb Trumpet","Jupiter JRT 700",5,null,null,0]
["Clear pinstripe tenor drum heads 14” crimplock","Remo",10,null,null,0]
["Concert Bells w/ stand","Yamaha YG1210S100",1,null,null,0]
["Concert Snare","Pearl",1,null,null,0]
["Cymbal Bag 20” Basic Bag","Zildjian ZCB20 5",5,null,null,0]
["Cymbal pads Felts","Zildjian",5,null,null,0]
["Eb Soprano Clarinet","Buffet Crampon E11",1,null,null,0]
["Euphonium","Jupiter JEP1120",1,null,null,0]
["Euphonium (4 valve)","Yamaha YEP-321",3,null,null,0]
["F Attachment Trombone","Fidelis",4,null,null,0]
["Flugelhorn","Bach FH600 Aristocrat",1,null,null,0]
["Flute","Gemeinhardt Model 3 with Offest G, B Foot",4,null,null,0]
["Flute","Gemeinhardt 2SPA",12,null,null,0]
["French Horn","Holton H379",2,null,null,0]
["Leg rest for snare drum","Pearl LR60",12,null,null,0]
["Level bar for sling carrier","Pearl  MH30",12,null,null,0]
["Marching Baritone","Yamaha YBH-301M Silver",2,null,null,0]
["Marching Bass 14X14","Pearl Championship",1,null,null,0]
["Marching Bass 16X14 ","Pearl Championship",1,null,null,0]
["Marching Bass 18X14 ","Pearl Championship",1,null,null,0]
["Marching Bass 20X14 ","Pearl Championship",1,null,null,0]
["Marching Bass 22X14 ","Pearl Championship",1,null,null,0]
["Marching Bass 24X14 ","Pearl Championship",1,null,null,0]
["Marching Bass 26X14 ","Pearl Championship",1,null,null,0]
["Marching Bass 28X14 ","Pearl Championship",1,null,null,0]
["Marching Bass 30X16 ","Pearl Championship",1,null,null,0]
["Marching Bass 32X16 ","Pearl Championship",1,null,null,0]
["Marching Bass Sling","Ludwig  LF350B ",10,null,null,0]
["Marching Bass Stand Adjustable ","Signature Music 7138",10,null,null,0]
["Marching Cymbals 14” ","Zildjian ZBT, pr",5,null,null,0]
["Marching Mellophone","Yamaha YMP-204M Silver",2,null,null,0]
["Marching Snare 14x12","Pearl Championship White FFX ",5,null,null,0]
["Marching Snare case 14X12","Pearl",10,null,null,0]
["Marching snare head pack Heads, sticks, and quiver ","Evans ",10,null,null,0]
["Marching Snare Sling","Ludwig  LF382B Black Parade ",10,null,null,0]
["Marching Snare Stand Stand ","Pearl ",10,null,null,0]
["Marimba","Musser M32",1,null,null,0]
["Mellophone","Fidelis",2,null,null,0]
["Piccolo","Gemeinhardt Model 4P",2,null,null,0]
["Piccolo","Fidelis",4,null,null,{"$f":"C70*D70","v":0}]
["Rim Savers for Bass Drums Sizes 14 - 32 ","Yamaha",1,null,null,0]
["Snare Stand","Pearl s1030ls",1,null,null,0]
["Soprano Saxophone","Yamaha YSS-475II",1,null,null,0]
["Sousaphone","Fidelis",3,null,null,0]
["Suspended Cymbal Stand","Verve",1,null,null,0]
["Tenor Saxophone","Yamaha YTS-480",5,null,null,0]
["Tenor Saxophone","Fidelis",1,null,null,0]
["Traditional Tenor Drum 14X12 ","Pearl PTD ",5,null,null,0]
["Trombone ","Jupiter JTB 700A",2,null,null,0]
["Trumpet","Bundy BTR-300",6,null,null,0]
["Trumpet","Fidelis",4,null,null,0]
["Tuba","Jupiter JTU-700",3,null,null,0]
["Vibraphone","Adams Concert Series 3.0 with Motor and Endurance Field Frame",1,null,null,0]
["Total",{"$nulls":4},{"$f":"SUM(F5:F83)","v":0}]